Cogmind - Beta 17 @@@ ROGUE MODE // 2026.08.02 @ 04:36:20 Player: KADW Result: Destroyed by Autobeam Turret with Autobeam Performance ------------- Evolutions (0) 0 Regions Visited (2) 400 Robots Destroyed (18) 90 Value Destroyed (454) 454 Prototype IDs (16) 320 Alien Tech Used (0) 0 Bonus (5200) 5200 TOTAL SCORE: 6464 Bonus ------- Prayed to X0-1V1 5000 Major X0-1V1 Interference 200 Cogmind --------- Core Integrity 0/175 Matter 198/700 Energy 677/900 System Corruption 0% Temperature Cool (12) Movement Rolling (90) Location -10/Subcaves Parts ------- > --- POWER (1) -------- (None) > --- PROPULSION (3) --- Armored Wheel (fused) Armored Wheel (fused) Armored Wheel (fused) > --- UTILITY (2) ------ Self-contained Transmogrifier > --- WEAPON (1) ------- Mini Grenade Launcher (fused) > --- INVENTORY (5) ---- Subdweller Monowheel Medium Storage Unit Sensor Array Subdweller Machine Gun Barrage Gun Peak State ------------ > --- POWER ------------ Light Nuclear Core > --- PROPULSION ------- Light Treads Compact Wheel Armored Wheel > --- UTILITY ---------- Self-contained Transmogrifier X0-1V1's Piety Tracker > --- WEAPON ----------- Scythe > --- INVENTORY -------- Subdweller Monowheel Small Storage Unit Medium Storage Unit Sensor Array Grenade Launcher [Rating: 32] Favorites ----------- Power Light Nuclear Core Engine Ion Engine Power Core Light Nuclear Core Propulsion Light Treads Treads Light Treads Wheel Compact Wheel Utility Medium Storage Unit Device X0-1V1's Piety Tracker Storage Medium Storage Unit Protection Light Armor Plating Weapon Autogun Energy Cannon Particle Cannon Ballistic Gun Autogun Launcher Mini Grenade Launcher Special Weapon Mining Laser Impact Weapon Heavy Hammer Slashing Weapon Scythe Special Melee Weapon Datajack Build | -11 -10 -10 ------- Run | Yrd Mat Sub Slots Evolved . | . . . Power . | . . . Propulsion . | . . . Utility . | . . . Weapon . | . . . Parts Attached 25 | 8 14 3 Power 3 | 1 2 . Engine 2 | 1 1 . Core 1 | . 1 . Reactor . | . . . Propulsion 6 | 3 3 . Treads 2 | 2 . . Leg . | . . . Wheel 4 | 1 3 . Hover . | . . . Flight . | . . . Utility 6 | 2 3 1 Device 3 | 1 1 1 Storage 2 | 1 1 . Processor . | . . . Hackware . | . . . Protection 1 | . 1 . Artifact . | . . . Weapon 10 | 2 6 2 Energy Gun . | . . . Energy Cannon 1 | . 1 . Ballistic Gun 5 | 2 3 . Ballistic Cannon . | . . . Launcher 1 | . . 1 Special Weapon 1 | . 1 . Impact Weapon 1 | . . 1 Slashing Weapon . | . . . Piercing Weapon . | . . . Special Melee Weapon 1 | . 1 . Unidentified Prototypes 2 | . 1 1 Parts Lost 2 | . . 2 Power 1 | . . 1 Propulsion . | . . . Utility 1 | . . 1 Weapon . | . . . Highest Loss Streak 1 | . . 1 To Critical Strikes . | . . . Average Backups 8 | 3 9 7 Power . | . 1 . Propulsion 1 | 1 2 1 Utility 2 | . 2 2 Weapon 2 | . 2 2 Tool/Special . | . . . Unused Backups 14 | 1 7 6 Power 2 | . 2 . Propulsion 3 | 1 . 2 Utility 5 | . 3 2 Weapon 4 | . 2 2 Tool/Special . | . . . Average Slot Usage (%) 97 | . 99 95 Engine 4 | . 8 . Core 7 | . 5 9 Treads 15 | . 14 16 Wheel 18 | . 13 23 Device 16 | . 12 21 Storage 10 | . 14 6 Ballistic Gun 12 | . 19 6 Launcher 1 | . . 2 Special Weapon 4 | . 7 2 Slashing Weapon 2 | . . 4 Peak Build Rating 32 | 8 23 32 Average Rating 17 | 5 9 26 On Entrance 10 | . 8 23 Avg Prop Armor Cover (%) 15 | 12 11 20 Naked Turns . | . . . Heaviest Build 23 | 15 23 20 Greatest Support 40 | 10 20 40 Greatest Overweight (x) 1 | 1 1 1 Average Overweight (x) . | . . . Largest Inventory Capacity 10 | 8 10 10 Average Capacity 8 | 7 9 7 Most Carried 10 | 8 10 10 Average Carried 8 | 3 9 7 Final Capacity 10 | 8 10 5 Final Carried 10 | 8 10 5 Transmogrified Parts 5 | . . 5 Integrity Recovered 44 | . . 44 Class Distribution -------------------- 88% | Mutant 11% | Scavenger-Mutant Dominant Class ---------------- Mutant | -10/Materials Mutant | -10/Subcaves Resources | -11 -10 -10 ----------- Run | Yrd Mat Sub Matter Collected 812 | 203 330 279 Remotely . | . . . Salvage Created 425 | 25 330 70 Parts 41 | 9 18 14 Haulers Intercepted . | . . . Recyclers Shooed . | . . . Parts Field Recycled . | . . . Retrieved Matter . | . . . Parts Self-Destructed 11 | . . 11 Prevented . | . . . Parts Restored . | . . . Kills | -11 -10 -10 ------- Run | Yrd Mat Sub Combat Hostiles Destroyed 15 | . 9 6 Guns 8 | . 8 . Cannons 1 | . 1 . AOE 6 | . . 6 Classes Destroyed 5 | 1 2 2 Tunneler 2 | 2 . . Turret 1 | . . 1 Swarmer 6 | . 3 3 Grunt 6 | . 6 . Subdweller 3 | . . 3 Best Kill Streak 4 | 1 3 4 Combat Bots Only 3 | . 3 3 Max Kills in Single Turn 2 | 1 2 2 Gunslinging 1 | . 1 . Exploded 2 | . . 2 Melee . | . . . Uniques/NPCs Destroyed . | . . . Combat | -11 -10 -10 -------- Run | Yrd Mat Sub Hostile Shots Fired 129 | . 68 61 Missed 51 | . 19 32 Hits 78 | . 49 29 Projectile 78 | . 49 29 Critical Strikes 1 | . 1 . Damage Taken 822 | . 514 308 Core 250 | . 171 79 Absorbed by Shields . | . . . Core Remaining (%) 100 | 100 . . Volleys Fired 64 | 3 45 16 Largest 2 | 2 2 1 Hottest 100 | 40 100 30 Shots Fired 102 | 6 80 16 Gun 75 | 6 67 2 Cannon 5 | . 5 . Launcher 14 | . . 14 Special 8 | . 8 . Kinetic 75 | 6 67 2 Thermal 13 | . 13 . Explosive 14 | . . 14 Electromagnetic . | . . . Robot Hit Streak 7 | 2 7 4 Robot Miss Streak 3 | 1 3 2 Penetration Max . | . . . Secondary Targets 1 | . 1 . Max Gunslinging Chain 1 | . 1 . Shots Hit Robots 58 | 3 48 7 Core Hits 33 | 3 16 14 Critical Kills . | . . . Critical Parts Destroyed . | . . . Critical Strikes . | . . . Melee Attacks 4 | . 1 3 Impact 3 | . . 3 Slashing . | . . . Piercing . | . . . Sneak Attacks . | . . . Combat Hostiles . | . . . Follow-up Attacks . | . . . Damage Inflicted 1224 | 34 560 630 Guns 554 | 34 520 . Cannons 40 | . 40 . Explosions 630 | . . 630 Melee . | . . . Ramming . | . . . Kinetic 554 | 34 520 . Thermal 40 | . 40 . Explosive 630 | . . 630 Electromagnetic . | . . . Impact . | . . . Slashing . | . . . Piercing . | . . . Highest Corruption . | . . . Average Corruption . | . . . Corruption Purged . | . . . Corruption Blocked . | . . . Overload Shots . | . . . Overflow Damage 5 | . . 5 Projectiles . | . . . Explosions 5 | . . 5 Melee . | . . . Knockbacks . | . . . Impact . | . . . Kinetic . | . . . Secondary . | . . . Self-Inflicted Damage 45 | . . 45 Shots 2 | . . 2 Rammed . | . . . Targets Rammed . | . . . Kicked . | . . . Crushed . | . . . Highest Temperature 191 | . 191 . Average Temperature 38 | . 38 . Received Heat Transfer 375 | . 219 156 Siege Activations . | . . . Martial Activations . | . . . Shielding Activations . | . . . Robots Disrupted . | . . . Combat Hostiles . | . . . Robots Corrupted . | . . . Combat Hostiles . | . . . Parts Fried . | . . . Impact Corruptions . | . . . Robots Melted . | . . . Combat Hostiles . | . . . Parts Melted . | . . . Heat Transferred 74 | . 74 . Parts Sabotaged . | . . . Parts Stolen . | . . . Parts Stripped . | . . . Power Chain Reactions . | . . . Alert | -11 -10 -10 ------- Run | Yrd Mat Sub Maximum Alert Level . | . . . Low Security (%) 100 | 100 100 . Level 1 . | . . . Level 2 . | . . . Level 3 . | . . . Level 4 . | . . . Level 5 . | . . . High Security . | . . . Max Security . | . . . Peak Influence 175 | 5 175 . Initial 3 | . 3 . Average 79 | 1 87 . Influence Increases 466 | 10 346 110 Destroy 0b10 Robot/C 260 | . 180 80 Destroy 0b10 Robot/NC 10 | 10 . . Destroy Leader 30 | . 30 . Successful Hack 23 | . 23 . Destroy Structure 8 | . 8 . Lose Combat Pursuer 135 | . 105 30 Influence Decreases 402 | 5 313 84 Entered New Map 21 | . 2 19 Time Decay 361 | 5 311 45 Lost Part 20 | . . 20 Squads Dispatched . | . . . Investigation . | . . . Extermination . | . . . Reinforcement . | . . . Assault . | . . . Garrison . | . . . Intercept . | . . . Searches Triggered . | . . . Construction Impeded . | . . . Haulers Reinforced . | . . . Active Scanning Responses . | . . . Cargo Convoy Interrupts . | . . . Stealth | -11 -10 -10 --------- Run | Yrd Mat Sub Distress Signals 3 | . 3 . Communications Jammed . | . . . Distress Signals . | . . . Times Spotted 34 | . 24 10 Peak Tracking Total 6 | . 6 5 Tactical Retreats 6 | . 4 2 Traps | -11 -10 -10 ------- Run | Yrd Mat Sub Traps Triggered 4 | . 4 . Indirectly . | . . . Trap Hack Attempts . | . . . Triggered . | . . . Disarmed . | . . . Reprogrammed . | . . . Reused . | . . . Traps Extracted . | . . . Installed . | . . . Triggered . | . . . Machines | -11 -10 -10 ---------- Run | Yrd Mat Sub Machines Disabled 3 | . . 3 Max in Single Turn 2 | . . 2 Machines Repaired . | . . . Machines Dismantled . | . . . Machines Sabotaged . | . . . Overloaded Fab Kills . | . . . Hacking | -11 -10 -10 --------- Run | Yrd Mat Sub Machines Accessed 11 | . 8 3 Terminals 7 | . 7 . Fabricators . | . . . Repair Stations . | . . . Recycling Units 1 | . 1 . Scanalyzers . | . . . Garrison Access . | . . . Total Hacks 30 | . 18 12 Successful 27 | . 15 12 Failed 3 | . 3 . Catastrophic . | . . . Database Lockouts . | . . . Manual 18 | . 18 . Terminals 17 | . 17 . Fabricators . | . . . Repair Stations . | . . . Recycling Units 1 | . 1 . Scanalyzers . | . . . Garrison Access . | . . . Terminal Hacks 17 | . 5 12 Record 9 | . . 9 Open Door 1 | . . 1 Branch Access Points 1 | . 1 . Maintenance Status 1 | . 1 . Transport Status 1 | . 1 . Hauler Manifests 1 | . 1 . Zone Layout 1 | . 1 . Proto ID Catalog 1 | . . 1 Release Object 1 | . . 1 Fabricator Hacks . | . . . Repair Station Hacks . | . . . Recycling Unit Hacks 1 | . 1 . Retrieve Matter 1 | . 1 . Scanalyzer . | . . . Garrison Access Hacks . | . . . Unauthorized Hacks 9 | . 9 . Terminals 9 | . 9 . Track 1 | . 1 . Botnet 7 | . 7 . Operators 1 | . 1 . Fabricators . | . . . Repair Stations . | . . . Recycling Units . | . . . Scanalyzers . | . . . Garrison Access . | . . . Data Cores Recovered . | . . . Used . | . . . Hacking Detections 6 | . 6 . Full Trace Events . | . . . Feedback Events . | . . . Feedback Blocked . | . . . Robot Schematics Acquired . | . . . Robots Built . | . . . Authchips . | . . . Time . | . . . Total Robot Build Rating . | . . . Part Schematics Acquired . | . . . Parts Built . | . . . Authchips . | . . . Time . | . . . Total Part Build Rating . | . . . Part Studies Acquired . | . . . Parts Repaired . | . . . Time . | . . . Parts Recycled . | . . . Recycled Matter . | . . . Retrieved Matter . | . . . Retrieved Components . | . . . Parts Scanalyzed . | . . . Part Schematics Acquired . | . . . Parts Damaged . | . . . Bothacking | -11 -10 -10 ------------ Run | Yrd Mat Sub Used RIF Installer . | . . . Robots Hacked 1 | . 1 . Non-combat . | . . . Combat 1 | . 1 . Robot Hacks Applied 1 | . 1 . parse_system 1 | . 1 . Relay Couplers Released . | . . . Fabnet Peak Effective % . | . . . Robots Rewired . | . . . Allies Hacked . | . . . Hacks Repelled . | . . . Allies | -11 -10 -10 -------- Run | Yrd Mat Sub Total Allies . | . . . Largest Group . | . . . Highest-Rated Group . | . . . Highest-Rated Ally . | . . . Total Orders . | . . . Ally Attacks . | . . . Total Damage . | . . . Kills . | . . . Allies Corrupted . | . . . Allies Melted . | . . . X0-1V1 Amusement Gains 37 | . 22 15 Good Acts 4 | . . 4 Bad Acts 6 | . . 6 Intel | -11 -10 -10 ------- Run | Yrd Mat Sub Active Infowar (turns) 866 | 12 854 . Seismic 866 | 12 854 . Robot Analysis Total . | . . . Derelict Logs Recovered 2 | . . 2 Drone Launches . | . . . Drone Recoveries . | . . . Exploration | -11 -10 -10 ------------- Run | Yrd Mat Sub Turns Passed 2057 | 99 950 1008 Spaces Moved 1675 | 77 680 918 Core 5 | 5 . . Treads 7 | . 7 . Legs . | . . . Wheels 1663 | 72 673 918 Hover . | . . . Flight . | . . . Fastest Speed 50 | 50 95 90 Average Speed 102 | 89 104 103 Slowest Speed 160 | 95 160 115 Overloaded Moves . | . . . Propulsion Burnouts . | . . . Robots Hopped . | . . . Potential Cave-ins . | . . . Cave-ins Triggered . | . . . Exploration Rate (%) 51 | 3 95 55 Regions Visited 2 Branch Regions 1 Pre-discovered Areas 1 | . . 1 Known Exits Taken . | . . . Unknown Exits Taken 2 | 1 1 . Scrap Searched 1 | . . 1 Spaces Dug 8 | . 8 . Terrain Destroyed 77 | . 8 69 Melee . | . . . Projectile 8 | . 8 . AOE 69 | . . 69 Terrain Rammed . | . . . Walls Destroyed . | . . . Machines Disabled . | . . . Actions | -11 -10 -10 --------- Run | Yrd Mat Sub Total 1890 | 97 829 964 Wait 47 | . 40 7 Move 1673 | 76 679 918 Hop . | . . . Pick Up 30 | 8 16 6 Fast Attach 21 | 8 13 . Attach 1 | . . 1 Detach 2 | 1 1 . Swap 15 | . 12 3 Drop 32 | 1 22 9 Fire 64 | 3 45 16 Melee 4 | . 1 3 Ram . | . . . Kick . | . . . Crush . | . . . Escape Stasis . | . . . Rewire . | . . . Trap . | . . . Miscellaneous 1 | . . 1 Route ------- -11/Scrapyard -10/Materials (discovered 6 exits: [*Mat x3] / *Min x2 / *Sub) -10/Subcaves (discovered 1 exit: [*Rec]) History --------- Turn | Location | Event 22 | -11/Scrapyard | Discovered new exit (range 15) 100 | -11/Scrapyard | Entered Materials 221 | -10/Materials | Discovered new exit (range 15) 346 | -10/Materials | Build established: Mutant 437 | -10/Materials | Core integrity fell below 50% 479 | -10/Materials | Discovered new exit (range 6) 568 | -10/Materials | Discovered new exit (range 15) 807 | -10/Materials | Discovered new exit (range 4) 869 | -10/Materials | Identified exit to Mines 936 | -10/Materials | Discovered new exit (range 5) 1027 | -10/Materials | Discovered new exit (range 9) 1044 | -10/Materials | Prayed at D.C.S.S. Altar Unit 1050 | -10/Materials | Entered Subcaves 1241 | -10/Subcaves | X0-1V1 mutated your Weapon slot to Propulsion slot 1526 | -10/Subcaves | Visited 4L-MR0's lab 1535 | -10/Subcaves | Found Prototype Device 1536 | -10/Subcaves | Identified Sfc. Transmogrifier 1594 | -10/Subcaves | Released subatomizers from SUBCON Basin 1834 | -10/Subcaves | A swath of the cavern ceiling suddenly collapsed 1859 | -10/Subcaves | Learned location of Zion (-7) 1884 | -10/Subcaves | Heat dissipation permanently improved by X0-1V1 (+15; -75 max core) 2041 | -10/Subcaves | Discovered new exit (range 13) 2052 | -10/Subcaves | Core integrity fell below 20% 2058 | -10/Subcaves | Destroyed by Autobeam Turret with Autobeam Last Messages --------------- in size. (+400 matter capacity) 01991_ Sight range returns to normal. 02004_ P1-I05(R) destroyed. 02007_ Acquired 39 matter. 02010_ The unstable cave ceiling collapses. 02010_ Acquired 43 matter. 02010_ X0-1V1 makes important surrounding features appear closer to you (+3 sight range). 02034_ S6-F3F(z): "She is not going to be happy we haven't found any suitable candidates yet." 02041_ EXIT=FOUND 02042_ Machine disabled. 02043_ X0-1V1's Piety Tracker destroyed. 02043_ X0-1V1 is mildly amused. 02048_ Lgt. Ion Engine fries itself beyond repair. 02048_ S-10 Pest destroyed. 02050_ Machine disabled. 02058_ Destroyed Autobeam. 02058_ Autobeam Turret destroyed. 02058_ X0-1V1 guffaws! Map ----- +----------------------------------------------------+ | ?????????????????????????????????????????????????? | | ?????????????????????????????????????????????????? | | ?????????????????????????????????????????????????? | | ?????????????????????????????????????????????????? | | ?????????????????????????????????????????????????? | | ?????????????????????????????????????????????????? | | ?????????????????????????????????????????????????? | | ?????????????????????????????????????????????????? | | ?????????????????????????????????????????????????? | | ?????????????????????????????????????????????????? | | ?????????????????????????????????????????????????? | | ?????????????????????????????????????????????????? | | ?????????????????????????????????????????????????? | | ?????????????????????????????????????????????????? | | ?????????????????????????????????????????????????? | | ?????????????????????????????????????????????????? | | ?????????????????????????????????????????????????? | | ???????????????????????????????#?????????????????? | | ????????????######???????????? #?????????????????? | | ????????????# ?????????? ##????????????????? | | ???????????## [ ????????? #????????????????? | | ???????????# ?#####? ##????????????????? | | ???????????# # ## #????????????????? | | ???????????## % #???????????######? | | ???????????# < = ????????????# ## | | ????????????# t @ #???????????????# # | | ???????????# #???????????????# | | ???????????## #??????????????## | | ????????????# " # #??????????????# | | ????????????#### ##### ##??????????????# | | ?????????????### #### #??????????????## # | | ????????????## # ### #?????????????## ### | | ???????????## #?????????????# ## | | ??????????## ##????????###??# | | ?????????## & #???????## ##### | | ?????????# &%& ######??# ## | | ?????????# &# #??# | | ?????????# ##??# | | ?????????## #?### ## ### | | ??????????## ### #### ##?# | | ???????????# ### ### #??########? | | ???????????####?#### #?# #???????# # | | ???????????????????######?# ######??????## | | ??????????????????????????## ##??????????# | | ??????????????????????????## ##?????????# | | ??????????????????????????# ##????????## | | ??????????????????????????# ##????????## | | ??????????????????????????# ##????????# | | ??????????????????????????## ###??????# | | ???????????????????????????## #??????## | +----------------------------------------------------+ Best States ------------- Heat Dissipation 40 Energy Generation 14 Energy Capacity 900 Matter Stores 283 Matter Capacity 700 Sight Range 19 Terrain Scan Density 10 Armor Coverage 150 Evasion (%) 44 Recoil Reduction 1 Item Schematics ----------------- None Robot Schematics ------------------ None Fabricated ------------ Nothing Repaired ---------- Nothing Studied --------- None Alien Tech Used ----------------- None Achievements -------------- Chaos Is Inevitable Mistaken Identity Challenges ------------ None Game ------ Seed CatalystThermalSabre Manual? 0 Play Time 00:31:38 Cumulative 118.5 hours Start 2026.08.02 @ 04:05:18 End 2026.08.02 @ 04:36:20 Sessions 1 Manual Loads 0 Difficulty Rogue Special Mode None Game No. 64 Rogue 64 Adventurer 0 Explorer 0 Win Type - Total 4 Types 4/0/0/0/0/0/0/0/0/0 Lore% 46 Gallery% 53 Achievement% 26 Wizard Run 0 Options --------- Layout 0 ASCII 1 Keyboard 0 Movement Mouse Keybinds 0 Fullscreen 1 Font 20/X11 Map View 66x50 Zoom Use 0% Tactical HUD 1 Map Filters NONE Filters NONE Steam 1 RUN: f49d34f3-5298-48e9-88ba-269f950b39eb